bitfinex/quotes_ETHUSD_20241231
["timestamp","ask_amount","ask_price","bid_price","bid_amount"]
[1735641667447,2.94053,3400.8,3400.4,7.30643635]
[1735641667750,0.05,3401.0,3400.4,7.30643635]
[1735641668046,3.0,3400.7,3400.4,0.80643635]
[1735641668204,3.0,3400.7,3400.4,0.06925123]
[1735641668405,3.0,3400.7,3400.3,0.8026]
[1735641668617,3.0,3400.7,3400.5,0.06842408]
[1735641668960,3.0,3400.7,3400.6,0.06842408]
[1735641669249,2.94041,3400.9,3400.6,0.06842408]
[1735641669411,3.0,3400.8,3400.6,6.5]
[1735641669603,3.0,3400.8,3400.7,0.06842408]
[1735641669799,0.05,3401.0,3400.7,0.06842408]
[1735641670167,0.05,3401.0,3400.8,0.06842408]
[1735641670305,3.0,3400.9,3400.8,0.06842408]
[1735641670505,2.94039,3400.9,3400.7,6.5]
[1735641670706,2.94039,3400.9,3400.8,0.06842408]
[1735641671050,2.99031,3401.0,3400.9,6.5]
[1735641671630,2.99031,3401.0,3400.9,6.56842408]
[1735641677566,5.99031,3401.0,3400.9,6.56842408]
[1735641679709,7.15636552,3401.0,3400.9,6.56842408]
[1735641679996,2.94039,3400.9,3400.8,6.5]
[1735641680411,5.94039,3400.9,3400.8,6.56795161]
[1735641680550,5.94039,3400.9,3400.8,6.5]
[1735641680752,5.94039,3400.9,3400.8,7.22751]
[1735641680983,5.94039,3400.9,3400.8,7.29546161]
[1735641682295,5.94039,3400.9,3400.8,6.56795161]
[1735641689918,6.73909,3400.9,3400.8,6.56795161]
[1735641694733,5.94039,3400.9,3400.8,6.56795161]
[1735641694892,5.94039,3400.9,3400.8,7.38815161]
[1735641696036,3.0,3400.9,3400.8,7.38815161]
[1735641696338,3.0,3400.9,3400.8,8.12696677]
[1735641700047,0.05,3401.0,3400.9,1.1624287]
[1735641701021,0.05,3401.0,3400.9,7.6624287]
[1735641701241,0.05,3401.0,3400.9,8.79661609]
[1735641703275,0.05,3401.0,3400.9,9.81297617]
[1735641705112,0.05,3401.0,3400.9,9.53790928]
[1735641706413,0.05,3401.0,3400.9,11.06389027]
[1735641706813,0.05,3401.0,3400.9,10.24369027]
[1735641707517,2.99031,3401.0,3400.9,9.10950288]
[1735641707718,2.99031,3401.0,3400.9,6.56716181]
[1735641708656,0.05,3401.0,3400.9,6.56716181]
[1735641708840,2.99031,3401.0,3400.9,6.56716181]
[1735641709031,0.05,3401.0,3400.9,6.56716181]
[1735641709665,0.05,3401.0,3400.9,7.58508486]
[1735641710735,0.05,3401.0,3400.9,6.56716181]
[1735641711055,0.05,3401.0,3400.9,8.1695513]
[1735641711919,0.05,3401.0,3400.9,11.1099413]
[1735641712119,0.05,3401.0,3400.9,11.38469818]
[1735641712857,0.05,3401.0,3400.9,18.43164542]
[1735641713063,0.8131,3401.9,3401.0,0.8222]
[1735641713235,0.8131,3401.9,3401.1,2.66536454]
[1735641713434,0.8131,3401.9,3401.1,2.73014692]
[1735641713923,3.0,3401.8,3401.2,0.27475688]
[1735641714320,3.0,3401.8,3401.3,0.33953926]
[1735641714721,3.0,3401.8,3401.3,0.06478238]
[1735641714921,3.0,3401.8,3401.7,6.5]
[1735641715364,2.93962,3401.8,3401.7,6.56478238]
[1735641721025,2.93962,3401.8,3401.7,0.06478238]
[1735641721458,3.0,3401.6,3401.4,6.5]
[1735641721631,2.93953,3401.9,3401.7,0.06414111]
[1735641721831,2.93985,3401.6,3401.4,6.5]
[1735641722046,2.93985,3401.6,3401.5,6.5]
[1735641723252,2.93985,3401.6,3401.5,7.15]
[1735641723693,3.0,3401.7,3401.5,7.15]
[1735641724178,3.93949,3402.0,3401.5,7.15]
[1735641724179,5.93979,3401.6,3401.5,7.15]
[1735641725041,5.93979,3401.6,3401.5,0.65]
[1735641725253,2.93968,3401.8,3401.1,0.8222]
[1735641725552,3.0,3401.8,3401.2,0.27478576]
[1735641725752,3.0,3401.8,3401.3,0.7893]
[1735641725948,3.0,3401.8,3401.6,6.5]
[1735641727084,3.0,3401.8,3401.7,6.5]
[1735641727381,3.0,3401.8,3401.7,7.27304772]
[1735641727583,1.0,3402.0,3401.7,7.27304772]
[1735641727758,1.0,3402.0,3401.7,8.12435079]
[1735641728560,3.93952,3402.0,3401.7,8.12435079]
[1735641729988,3.93952,3402.0,3401.9,6.5]
[1735641730389,3.93952,3402.0,3401.9,6.56117763]
[1735641731591,1.0,3402.0,3401.9,6.56117763]
[1735641731753,1.0,3402.0,3401.9,7.29622539]
[1735641731953,4.0,3402.0,3401.9,7.29622539]
[1735641733167,1.0,3402.0,3401.9,7.29622539]
[1735641736617,1.0,3402.0,3401.9,6.56117763]
[1735641737313,3.93944,3402.0,3401.9,6.56117763]
[1735641740389,6.93944,3402.0,3401.9,6.56117763]
[1735641740592,7.76754,3402.0,3401.9,6.56117763]
[1735641741114,7.76754,3402.0,3401.9,0.06117763]
[1735641741521,2.9397,3401.7,3401.6,6.5]
[1735641741926,4.76754,3402.0,3401.7,6.5]
[1735641742129,5.93962,3401.8,3401.7,6.5]
[1735641742938,5.93962,3401.8,3401.7,6.55126097]
[1735641743616,6.76772,3401.8,3401.7,6.55126097]
[1735641743931,6.76772,3401.8,3401.7,0.05126097]
[1735641744130,5.93962,3401.8,3401.7,0.05126097]
[1735641744333,5.93975,3401.7,3401.5,6.5]
[1735641744539,2.93953,3401.9,3401.5,6.5]
[1735641744712,2.93977,3401.7,3401.5,6.5]
[1735641744909,2.93977,3401.7,3401.1,0.7696]
[1735641745124,3.0,3401.5,3401.2,0.20000772]
[1735641745325,3.0,3401.5,3401.2,0.4750145]
[1735641745712,3.0,3401.5,3401.2,0.20000772]
[1735641745912,3.0,3401.5,3401.4,6.5]
[1735641747338,2.93987,3401.5,3401.4,6.5]
[1735641752962,3.0,3401.6,3401.4,6.5]
[1735641754051,2.93979,3401.6,3401.5,6.54987774]
[1735641754504,3.0,3401.7,3401.5,6.54987774]
[1735641754708,3.0,3401.7,3401.5,7.22486629]
[1735641755609,3.0,3401.7,3401.5,6.54987774]
[1735641756041,3.7265,3401.7,3401.6,6.5]
[1735641756423,3.7265,3401.7,3401.6,6.54995124]
[1735641757233,3.7265,3401.7,3401.6,0.04995124]
[1735641757562,2.93987,3401.5,3401.4,6.5]
[1735641758049,5.93987,3401.5,3401.4,6.5]
[1735641758647,6.72667,3401.5,3401.4,6.5]
[1735641759022,2.94022,3401.1,3401.0,6.5]
[1735641759229,5.94022,3401.1,3401.0,6.5]
[1735641759424,6.72702,3401.1,3401.0,6.5]
[1735641760542,5.94022,3401.1,3401.0,6.5]
[1735641761715,5.94022,3401.1,3401.0,6.54878433]
[1735641767721,3.0,3401.1,3401.0,7.36978433]
[1735641768037,3.0,3401.1,3401.0,8.10676276]
[1735641769852,2.93975,3401.7,3401.0,8.38156522]
[1735641770039,2.93975,3401.7,3401.1,1.371]
[1735641770248,3.0,3401.7,3401.2,0.04905622]
[1735641770433,3.0,3401.7,3401.2,0.32385868]
[1735641770772,3.0,3401.7,3401.3,0.89318371]
[1735641771122,3.0,3401.7,3401.4,0.04921789]
[1735641771959,3.0,3401.7,3401.6,6.5]
[1735641772470,3.0,3401.7,3401.6,6.54921789]
[1735641773352,2.9397,3401.7,3401.6,6.54921789]
[1735641773550,3.6899,3401.7,3401.6,6.54921789]
[1735641774250,10.0199,3401.7,3401.6,6.54921789]
[1735641774664,9.2697,3401.7,3401.6,6.54921789]
[1735641775388,9.2697,3401.7,3401.6,6.5]
[1735641775764,9.2697,3401.7,3401.6,6.54921789]
[1735641776620,12.5997,3401.7,3401.6,6.54921789]
[1735641777072,12.5997,3401.7,3401.6,0.04921789]
[1735641777273,3.0,3401.6,3401.4,6.5]
[1735641777578,2.93987,3401.5,3401.4,6.5]
[1735641778094,2.93987,3401.5,3401.1,0.821]
[1735641778990,6.26987,3401.5,3401.1,0.821]
[1735641779295,6.26987,3401.5,3401.1,1.24858033]
[1735641779890,6.26987,3401.5,3401.2,0.27472702]
[1735641780191,6.26987,3401.5,3401.4,6.5]
[1735641781368,9.59987,3401.5,3401.4,6.5]
[1735641781990,10.35597,3401.5,3401.4,6.5]
[1735641782647,6.66,3401.5,3401.4,6.5]
[1735641782851,6.66,3401.5,3401.4,7.35634294]
[1735641784453,6.66,3401.5,3401.4,9.8994975]
[1735641784454,9.99,3401.5,3401.4,9.8994975]
[1735641785268,9.99,3401.5,3401.4,10.17411383]
[1735641785995,9.99,3401.5,3401.4,11.40459105]
[1735641787069,13.32,3401.5,3401.4,11.40459105]
[1735641787271,13.32,3401.5,3401.4,14.05442825]
[1735641787488,12.09080886,3401.5,3401.4,14.05442825]
[1735641787897,12.09080886,3401.5,3401.4,14.1033669]
[1735641788405,12.09080886,3401.5,3401.4,12.25765106]
[1735641789521,12.09080886,3401.5,3401.4,10.22305248]
[1735641789730,15.42080886,3401.5,3401.4,10.22305248]
[1735641789926,15.42080886,3401.5,3401.4,9.94843615]
[1735641790237,15.42080886,3401.5,3401.4,10.22280424]
[1735641791012,15.42080886,3401.5,3401.4,12.06737785]
[1735641792168,15.42080886,3401.5,3401.4,10.22280424]
[1735641792366,18.75080886,3401.5,3401.4,10.22280424]
[1735641793686,18.75080886,3401.5,3401.4,10.77280424]
[1735641794408,18.75080886,3401.5,3401.4,10.22280424]
[1735641794591,22.08080886,3401.5,3401.4,9.3664613]
[1735641796216,22.08080886,3401.5,3401.4,10.59542581]
[1735641797083,25.41080886,3401.5,3401.4,10.59542581]
[1735641798588,25.41080886,3401.5,3401.4,9.3664613]
[1735641799724,28.74080886,3401.5,3401.4,9.3664613]
[1735641800419,31.68067886,3401.5,3401.4,9.3664613]
[1735641800719,31.68067886,3401.5,3401.4,9.09209321]
[1735641802013,31.68067886,3401.5,3401.4,6.54893865]
[1735641802207,35.01067886,3401.5,3401.4,6.54893865]
[1735641802414,35.01067886,3401.5,3401.4,6.5]
[1735641805540,38.34067886,3401.5,3401.4,6.5]
[1735641807234,39.15287886,3401.5,3401.4,6.5]
[1735641807923,42.48287886,3401.5,3401.4,6.5]
[1735641809132,38.73080886,3401.5,3401.4,6.5]
[1735641809331,38.73080886,3401.5,3401.4,7.23321]
[1735641809722,38.73080886,3401.5,3401.4,7.50799219]
[1735641809937,38.73080886,3401.5,3401.4,7.55677281]
[1735641810462,42.06080886,3401.5,3401.4,7.55677281]
[1735641810818,42.06080886,3401.5,3401.4,8.10677281]
[1735641811015,42.06080886,3401.5,3401.4,11.87883545]
[1735641812561,42.06080886,3401.5,3401.4,14.5268446]
[1735641812750,45.39080886,3401.5,3401.4,14.5268446]
[1735641813534,45.39080886,3401.5,3401.4,12.49444455]
[1735641814258,45.39080886,3401.5,3401.4,11.76123455]
[1735641814561,45.39080886,3401.5,3401.4,11.21123455]
[1735641814761,45.39080886,3401.5,3401.4,13.2436346]
[1735641815262,48.72080886,3401.5,3401.4,13.2436346]
[1735641815820,48.72080886,3401.5,3401.4,9.36666094]
[1735641816947,48.72080886,3401.5,3401.4,13.41575462]
[1735641817669,52.05080886,3401.5,3401.4,13.41575462]
[1735641818539,52.05080886,3401.5,3401.4,13.60358106]
[1735641820062,55.38080886,3401.5,3401.4,13.60358106]
[1735641820565,55.38080886,3401.5,3401.4,15.45053169]
[1735641822777,58.71080886,3401.5,3401.4,15.45053169]
[1735641822983,58.71080886,3401.5,3401.4,13.60358106]
[1735641824253,58.71080886,3401.5,3401.4,16.07304715]
[1735641825378,58.71080886,3401.5,3401.4,13.60358106]
[1735641825584,62.04080886,3401.5,3401.4,14.35948106]
[1735641825756,62.04080886,3401.5,3401.4,18.54813074]
[1735641825958,62.04080886,3401.5,3401.4,15.60817074]
[1735641826997,31.38421352,3401.5,3401.4,27.21230035]
[1735641827195,23.68961075,3401.5,3401.4,30.21230035]
[1735641827494,9.88743588,3401.5,3401.4,29.45640035]
[1735641827644,7.20255121,3401.5,3401.4,32.36190035]
[1735641827841,0.1691622,3402.9,3402.8,2.93875]
[1735641828181,0.1691622,3402.9,3402.8,6.30854615]
[1735641828385,4.9e-06,3403.4,3403.3,14.84383408]
[1735641828584,4.9e-06,3404.2,3404.1,3.48763]
[1735641829168,4.9e-06,3404.2,3404.1,3.53383277]
[1735641829358,4.9e-06,3404.2,3404.1,3.80861496]
[1735641829774,3.0,3405.2,3404.2,3.48747]
[1735641829987,0.674722,3405.2,3404.2,0.55]
[1735641830277,2.93723,3404.6,3404.3,0.04620277]
[1735641830469,3.74803,3404.6,3404.5,1.83311471]
[1735641830669,6.98553552,3404.6,3404.5,1.87669148]
[1735641831060,7.22469753,3404.6,3404.5,1.87669148]
[1735641831256,6.98553552,3404.6,3404.5,1.87669148]
[1735641831456,6.98553552,3404.6,3404.5,0.04357677]
[1735641831457,3.8108,3404.6,3404.5,0.04357677]
[1735641831669,2.93704,3404.8,3403.9,1.22182559]
[1735641831876,2.93704,3404.8,3404.0,0.59131507]
[1735641832088,0.8108,3405.0,3404.5,6.5]
[1735641832282,3.0,3405.1,3404.5,6.5]
[1735641832473,3.0,3405.1,3404.6,0.0415717]
[1735641832671,2.93683,3405.1,3404.6,0.0415717]
[1735641832879,3.0,3404.9,3404.5,6.5]
[1735641833072,3.0,3404.9,3404.6,0.0415717]
[1735641833278,3.0,3404.9,3404.2,0.55]
[1735641833454,3.0,3404.9,3404.4,0.55]
[1735641833857,3.0,3404.9,3404.5,0.0415717]
[1735641834090,3.0,3404.9,3404.8,6.5]
[1735641834554,3.0,3404.9,3404.8,6.5415717]
[1735641835350,6.33,3404.9,3404.8,6.5415717]
[1735641837251,3.33,3404.9,3404.8,6.5415717]
[1735641837670,6.66,3404.9,3404.8,6.5415717]
[1735641838460,3.38521493,3404.9,3404.8,6.5415717]
[1735641839097,3.38521493,3404.9,3404.8,7.0915717]
[1735641839460,3.38521493,3404.9,3404.8,6.5415717]
[1735641840198,6.71521493,3404.9,3404.8,6.5415717]
[1735641841670,6.71521493,3404.9,3404.8,7.0915717]
[1735641842605,10.04521493,3404.9,3404.8,10.0286017]
[1735641842764,10.04521493,3404.9,3404.8,7.0915717]
[1735641843508,10.04521493,3404.9,3404.8,9.5993721]
[1735641846305,3.55249699,3404.9,3404.8,6.5415717]
[1735641847500,4.69941435,3404.9,3404.8,6.5415717]
[1735641848219,4.69941435,3404.9,3404.8,7.0915717]
[1735641849170,4.69941435,3404.9,3404.8,6.5415717]
[1735641849769,9.20679578,3404.9,3404.8,6.5415717]
[1735641850112,12.53679578,3404.9,3404.8,6.5415717]
[1735641851675,15.53679578,3404.9,3404.8,3.6045317]
[1735641851875,15.53679578,3404.9,3403.9,1.177188]
[1735641851876,0.7675,3404.7,3403.9,1.177188]
[1735641852071,2.93746,3404.3,3404.2,6.5]
[1735641852402,2.93746,3404.3,3404.2,6.53374997]
[1735641852584,2.93732,3404.5,3404.2,6.53374997]
[1735641852783,4.55368458,3404.6,3404.2,6.53374997]
[1735641853022,2.93746,3404.3,3404.2,0.03374997]
[1735641853516,2.93746,3404.3,3403.5,0.55]
[1735641853712,2.93746,3404.3,3403.6,0.0303744]
[1735641854575,2.93746,3404.3,3403.6,0.30277142]
[1735641854776,6.26746,3404.3,3403.6,0.30277142]
[1735641855173,6.26746,3404.3,3403.7,0.27239702]
[1735641855376,3.33,3404.3,3403.8,0.55]
[1735641855712,3.33,3404.3,3403.8,0.82239702]
[1735641855884,3.33,3404.3,3403.9,0.02680089]
[1735641856089,0.05443806,3404.3,3403.9,0.02680089]
[1735641856283,0.05443806,3404.3,3404.1,0.55]
[1735641856488,0.05443806,3404.3,3404.2,0.02679357]
[1735641856686,0.05443806,3404.3,3404.2,0.17791409]
[1735641856888,0.05443806,3404.3,3404.2,0.45031111]
[1735641857088,0.05443806,3404.3,3404.2,1.02710468]
[1735641857293,3.38443806,3404.3,3404.2,1.02710468]
[1735641858016,3.38443806,3404.3,3404.2,0.84919059]
[1735641858412,3.38443806,3404.3,3404.2,1.02787482]
[1735641858980,3.38443806,3404.3,3404.2,0.47787482]
[1735641859581,6.71443806,3404.3,3404.2,0.47787482]
[1735641859880,6.71443806,3404.3,3404.2,0.45108125]
[1735641861595,10.91707987,3404.3,3404.2,0.45108125]
[1735641861925,14.24707987,3404.3,3404.2,0.45108125]
[1735641862286,14.24707987,3404.3,3404.2,0.27239702]
[1735641862827,14.24707987,3404.3,3403.6,1.77182559]
[1735641862999,14.24707987,3404.3,3403.5,1.50697007]
[1735641863000,6.93,3404.1,3403.4,2.39919759]
[1735641863199,6.93,3404.1,3403.7,0.27376001]
[1735641863404,6.93,3404.1,3403.8,0.27376001]
[1735641863915,6.93,3404.1,3403.9,0.45256326]
[1735641864285,10.26,3404.1,3404.0,0.27376001]
[1735641864485,10.26,3404.1,3404.0,0.45256326]
[1735641865209,13.19763,3404.1,3404.0,0.45256326]
[1735641865408,14.29414003,3404.1,3404.0,0.45256326]
[1735641865714,13.19763,3404.1,3404.0,0.45256326]
[1735641866325,19.86404408,3404.1,3404.0,0.45256326]
[1735641866487,14.02853,3404.1,3404.0,0.17880325]
[1735641866690,17.35853,3404.1,3403.7,0.17880325]
[1735641866949,17.35853,3404.1,3403.8,0.27369902]
[1735641867523,17.35853,3404.1,3403.6,1.177366]
[1735641867688,12.99466884,3404.1,3403.6,1.177366]
[1735641868096,12.99466884,3404.1,3403.7,0.27365489]
[1735641868303,12.99466884,3404.1,3403.7,2.78995064]
[1735641868504,9.22613884,3404.1,3403.8,0.27365489]
[1735641868704,9.22613884,3404.1,3403.8,0.45235665]
[1735641868926,9.22613884,3404.1,3403.9,0.27365489]
[1735641869128,12.55613884,3404.1,3403.9,1.46168233]
[1735641869311,12.55613884,3404.1,3403.9,1.18802744]
[1735641869641,12.55613884,3404.1,3403.9,1.00932568]
[1735641870088,12.55613884,3404.1,3403.8,0.17870176]
[1735641870295,12.55613884,3404.1,3403.9,0.17870176]
[1735641871034,12.55613884,3404.1,3403.9,1.51589759]
[1735641871629,12.55613884,3404.1,3404.0,2.52732395]
[1735641871832,15.88613884,3404.1,3404.0,2.52732395]
[1735641872218,18.82376884,3404.1,3404.0,2.52732395]
[1735641872422,17.59539972,3404.1,3404.0,2.52732395]
[1735641872729,20.4424735,3404.1,3404.0,2.52732395]
[1735641873096,20.4424735,3404.1,3404.0,6.3875479]
[1735641873299,17.59539972,3404.1,3404.0,6.3875479]
[1735641874000,17.59539972,3404.1,3404.0,3.75320828]
[1735641874232,20.92539972,3404.1,3404.0,3.75320828]
[1735641875103,20.92539972,3404.1,3404.0,2.52732395]
[1735641876483,24.25539972,3404.1,3404.0,2.52732395]
[1735641876742,28.08159929,3404.1,3404.0,2.52732395]
[1735641878046,25.14396929,3404.1,3403.7,1.22588433]
[1735641878247,2.93781,3403.9,3403.7,1.22588433]
[1735641878853,2.93781,3403.9,3403.8,2.53400112]
[1735641879027,6.26781,3403.9,3403.8,2.53400112]
[1735641881067,6.26781,3403.9,3403.8,1.01360045]
[1735641881510,9.59781,3403.9,3403.8,1.01360045]
[1735641881707,9.59781,3403.9,3403.5,1.22588433]
[1735641881911,9.59781,3403.9,3403.6,0.27430134]
[1735641882658,9.59781,3403.9,3403.7,0.45343161]
[1735641882813,9.59781,3403.9,3403.7,2.98715782]
[1735641883015,9.59781,3403.9,3403.7,2.71285648]
[1735641883314,9.59781,3403.9,3403.7,2.53372621]
[1735641883624,9.59781,3403.9,3403.5,1.22588433]
[1735641883840,2.93792,3403.8,3403.5,1.22588433]
[1735641884055,9.99,3403.9,3403.6,0.45340619]
[1735641884234,12.98629957,3403.9,3403.6,0.45340619]
[1735641884433,12.98629957,3403.9,3403.6,0.27428757]
[1735641884629,12.98629957,3403.9,3403.6,2.53375442]
[1735641884630,2.938,3403.7,3403.6,2.53375442]
[1735641885679,2.938,3403.7,3403.6,2.80811403]
[1735641885858,3.7194,3403.7,3403.6,2.80811403]
[1735641886177,5.66766541,3403.7,3403.6,2.53375442]
[1735641886377,7.0494,3403.7,3403.6,2.53375442]
[1735641887537,7.0494,3403.7,3403.2,1.22588433]
[1735641887939,4.1114,3403.7,3403.3,0.27439621]
[1735641888143,3.33,3403.7,3403.4,0.27439621]
[1735641888667,3.33,3403.7,3403.5,0.49390193]
[1735641888869,6.66,3403.7,3403.5,0.49390193]
[1735641889280,6.66,3403.7,3403.3,2.53504163]
[1735641889281,6.66,3403.7,3403.6,0.67307226]
[1735641890141,6.66,3403.7,3403.6,3.20811389]
[1735641891477,7.80604979,3403.7,3403.6,3.20811389]
[1735641891780,7.80604979,3403.7,3403.6,7.0684295]
[1735641892882,7.80604979,3403.7,3403.6,5.5912286]
[1735641893382,7.80604979,3403.7,3403.6,8.22946774]
[1735641893884,11.13604979,3403.7,3403.6,8.22946774]
[1735641894579,11.13604979,3403.7,3403.6,5.78531479]
[1735641895462,11.13604979,3403.7,3403.6,8.84050597]
[1735641896255,14.46604979,3403.7,3403.6,5.78531479]
[1735641899003,17.79604979,3403.7,3403.6,8.72337479]
[1735641899502,17.79604979,3403.7,3403.6,11.23447761]
[1735641900458,14.85806979,3403.7,3403.6,15.51174527]
[1735641900662,11.58304882,3403.7,3403.6,15.76174527]
[1735641900888,11.58304882,3403.7,3403.6,15.51174527]
[1735641901200,11.58304882,3403.7,3403.6,11.23447761]
[1735641901391,10.54675205,3403.7,3403.6,11.23447761]
[1735641902202,10.54675205,3403.7,3403.6,14.06999169]
[1735641903895,13.87675205,3403.7,3403.6,14.06999169]
[1735641905272,13.87675205,3403.7,3403.6,18.36666091]
[1735641905884,13.87675205,3403.7,3403.6,11.55888887]
[1735641906380,17.20675205,3403.7,3403.6,11.55888887]
[1735641906814,17.20675205,3403.7,3403.6,18.36666091]
[1735641908772,20.53675205,3403.7,3403.6,18.36666091]
[1735641908972,20.53675205,3403.7,3403.6,11.55888887]
[1735641910210,20.37630867,3403.7,3403.6,14.06999169]
[1735641911267,23.12924523,3403.7,3403.6,14.06999169]
[1735641911467,17.02306024,3403.7,3403.6,17.06999169]
[1735641911683,15.55407024,3403.7,3403.6,17.06999169]
[1735641911880,10.43302211,3403.7,3403.6,21.36122757]
[1735641912173,7.76151269,3403.7,3403.6,30.43122757]
[1735641912368,7.76151269,3403.7,3403.6,27.59571349]
[1735641912771,2.30413448,3403.7,3403.6,23.30447761]
[1735641913213,0.83514448,3403.7,3403.6,23.30447761]
[1735641913599,7.86e-06,3403.7,3403.6,23.30447761]
[1735641914974,7.86e-06,3403.7,3403.6,23.55447761]
[1735641915321,7.86e-06,3403.7,3403.6,25.33013651]
[1735641915520,7.86e-06,3403.7,3403.6,24.53013651]
[1735641915819,7.86e-06,3403.7,3403.6,24.28013651]
[1735641916017,3.33000786,3403.7,3403.6,24.28013651]
[1735641916217,3.33000786,3403.7,3403.6,18.34207651]
[1735641916619,0.05568722,3403.7,3403.6,18.89207651]
[1735641916802,0.05568722,3403.7,3403.6,9.52207651]
[1735641917420,0.05568722,3403.7,3403.6,7.68640986]
[1735641917817,0.88168722,3403.7,3403.6,7.68640986]
[1735641918433,0.88168722,3403.7,3403.6,8.23640986]
[1735641918608,4.21168722,3403.7,3403.6,4.98389582]
[1735641920221,4.21168722,3403.7,3403.6,2.23708891]
[1735641920982,7.54168722,3403.7,3403.6,2.23708891]
[1735641921184,7.54168722,3403.7,3403.6,3.75811389]
[1735641922083,7.54168722,3403.7,3403.6,4.98389582]
[1735641922694,6.71568722,3403.7,3403.6,4.98389582]
[1735641923308,6.71568722,3403.7,3403.6,3.46287084]
[1735641923626,10.04568722,3403.7,3403.6,6.40093084]
[1735641924482,10.04568722,3403.7,3403.6,6.69617389]
[1735641925383,10.04568722,3403.7,3403.6,9.76004272]
[1735641925986,13.37568722,3403.7,3403.6,9.48564651]
[1735641926430,13.37568722,3403.7,3403.6,6.69550796]
[1735641927325,14.20168722,3403.7,3403.6,3.75744796]
[1735641927835,14.20168722,3403.7,3403.6,5.04568476]
[1735641928420,17.53168722,3403.7,3403.6,5.59568476]
[1735641928632,17.53168722,3403.7,3403.6,4.98316758]
[1735641929831,16.70568722,3403.7,3403.6,4.98316758]
[1735641930136,16.70568722,3403.7,3403.6,7.6474973]
[1735641930314,16.70568722,3403.7,3403.6,7.92130153]
[1735641930521,16.70568722,3403.7,3403.6,4.98324153]
[1735641930699,20.03568722,3403.7,3403.6,3.75752191]
[1735641930903,20.03568722,3403.7,3403.6,3.20752191]
[1735641931720,20.03568722,3403.7,3403.6,3.75752191]
[1735641931892,20.03568722,3403.7,3403.6,5.59627102]
[1735641932097,17.85208373,3403.7,3403.6,5.59627102]
[1735641932697,17.85208373,3403.7,3403.6,8.53433102]
[1735641933126,21.18208373,3403.7,3403.6,6.69558191]
[1735641934101,21.18208373,3403.7,3403.6,11.78665164]
[1735641935434,24.51208373,3403.7,3403.6,11.78665164]
[1735641936600,24.51208373,3403.7,3403.6,8.72278281]
[1735641937946,27.84208373,3403.7,3403.6,8.72278281]
[1735641938246,27.89208373,3403.7,3403.6,8.72278281]
[1735641940201,31.22208373,3403.7,3403.6,8.72278281]
[1735641940707,31.22208373,3403.7,3403.6,11.72278281]
[1735641942450,27.94736707,3403.7,3403.6,11.72278281]
[1735641942620,31.27736707,3403.7,3403.6,11.54361248]
[1735641942943,31.27736707,3403.7,3403.6,11.72247678]
[1735641943122,31.27736707,3403.7,3403.6,16.0092385]
[1735641945140,34.60736707,3403.7,3403.6,16.0092385]
[1735641945625,34.60736707,3403.7,3403.6,24.8292385]
[1735641946329,30.24126585,3403.7,3403.6,24.8292385]
[1735641947618,33.57126585,3403.7,3403.6,24.8292385]
[1735641948047,32.65050349,3403.7,3403.6,19.99247678]
[1735641948440,32.65050349,3403.7,3403.6,17.05441678]
[1735641948756,32.65050349,3403.7,3403.6,8.23441678]
[1735641949261,32.65050349,3403.7,3403.6,11.54361248]
[1735641949760,32.65050349,3403.7,3403.6,5.60555248]
[1735641950122,35.98050349,3403.7,3403.6,8.60555248]
[1735641950957,36.81120349,3403.7,3403.6,5.05555248]
[1735641951644,36.81120349,3403.7,3403.6,8.1230343]
[1735641952558,40.14120349,3403.7,3403.6,8.1230343]
[1735641952944,43.13750306,3403.7,3403.6,8.1230343]
[1735641953121,46.07547306,3403.7,3403.6,4.255749]
[1735641953322,46.07547306,3403.7,3403.6,3.14864477]
[1735641954565,46.07547306,3403.7,3403.0,1.22739742]
[1735641954566,39.31050349,3403.7,3403.0,1.22739742]
[1735641954785,0.8307,3403.6,3403.0,1.22739742]
[1735641954919,0.8307,3403.6,3403.1,0.27400451]
[1735641955657,0.8307,3403.6,3403.2,0.27400451]
[1735641955855,0.8307,3403.5,3403.2,0.27400451]
[1735641956061,0.8307,3403.5,3403.1,1.79502949]
[1735641956216,2.93824,3403.4,3403.1,1.79502949]
[1735641956414,0.8307,3403.3,3403.1,1.79502949]
[1735641957335,0.8307,3403.3,3403.1,0.27400451]
[1735641957535,0.8307,3403.2,3403.1,0.27400451]
[1735641957735,0.8307,3403.2,3403.0,0.27400451]
[1735641958335,0.8307,3403.2,3403.1,0.27400451]
[1735641958863,0.8307,3403.2,3403.0,0.27400451]
[1735641959452,3.33,3403.3,3403.0,0.27400451]
[1735641959923,6.66,3403.3,3403.0,0.27400451]
[1735641960371,6.66,3403.3,3403.1,0.27400451]
[1735641960949,6.66,3403.3,3403.0,0.27400451]
[1735641961348,6.66,3403.3,3402.9,1.22739742]
[1735641961349,6.66,3403.3,3402.9,1.50140193]
[1735641962385,9.99,3403.3,3403.0,0.55]
[1735641962592,10.8062,3403.3,3402.8,5.6871724]
[1735641962884,10.8062,3403.3,3403.0,0.27338911]
[1735641963450,10.8062,3403.3,3403.1,0.55]
[1735641963648,10.8062,3403.3,3403.0,3.02181151]
[1735641964470,10.8062,3403.3,3403.0,0.27338911]
[1735641964675,14.1362,3403.3,3403.0,0.27338911]
[1735641964882,14.1362,3403.3,3402.9,2.7484224]
[1735641966092,13.32,3403.3,3403.1,2.93842]
[1735641966291,13.32,3403.3,3403.2,0.55]
[1735641966491,13.32,3403.3,3403.2,3.48841]
[1735641966793,13.32,3403.3,3403.2,3.76179911]
[1735641967183,16.65,3403.3,3403.2,5.20775808]
[1735641967380,14.46618408,3403.3,3403.2,5.20775808]
[1735641967584,14.46618408,3403.3,3403.2,5.99895808]
[1735641968357,14.46618408,3403.3,3403.2,8.74738048]
[1735641969669,17.79618408,3403.3,3403.2,14.58289456]
[1735641970258,17.79618408,3403.3,3403.2,11.74738048]
[1735641970653,17.79618408,3403.3,3403.2,4.04017654]
[1735641970893,14.52103366,3403.3,3403.2,4.04017654]
[1735641971594,14.52103366,3403.3,3403.2,6.97858654]
[1735641971892,14.52103366,3403.3,3403.2,5.20494704]
[1735641972198,17.85103366,3403.3,3403.2,5.20494704]
[1735641973081,17.85103366,3403.3,3403.2,5.50138564]
[1735641974571,17.85103366,3403.3,3403.2,8.35069495]
[1735641974780,21.18103366,3403.3,3403.2,8.35069495]